{"text_format":"1","workbook":"xlsx","n_sheets":3,"sheets":["Sheet1","Sheet2","Sheet3"],"not_rendered":{"charts":0,"images":0,"macros":1,"external_links":0,"defined_names":0,"comments":0,"pivot_tables":0},"unopened":[],"bounds":{"document_bytes":16777216,"sheet_cells":100000,"rows_first":2000,"rows_last":500,"rows_between":2000,"halvings":0,"cell_chars":16384,"cell_head_chars":4096},"cells_cut":0,"cells_raw":0,"read":"whole","date_system":"1900"}

{"sheet":"Sheet1","index":0,"n_rows":16,"n_cols":7,"rows_kept":16,"cut":false,"hidden":false,"merged":[]}
["Category","Values"]
["N",442,null,"N",442,{"$f":"E2=B2","v":true},{"$f":"A2=D2","v":true}]
["O",395,null,"O",395,{"$f":"E3=B3","v":true},{"$f":"A3=D3","v":true}]
["L",367,null,"L",367,true,true]
["K",319,null,"K",319,true,true]
["P",310,null,"P",310,true,true]
["M",290,null,"M",290,true,true]
["J",190,null,"J",190,true,true]
["I",152,null,"I",152,true,true]
["E",38,null,"E",38,true,true]
["C",36,null,"C",36,true,true]
["H",26,null,"H",26,true,true]
["G",17,null,"G",17,true,true]
["B",13,null,"B",13,true,true]
["D",12,null,"D",12,true,true]
["A",10,null,"A",10,true,true]

{"sheet":"Sheet2","index":1,"n_rows":0,"n_cols":0,"rows_kept":0,"cut":false,"hidden":false,"merged":[]}

{"sheet":"Sheet3","index":2,"n_rows":0,"n_cols":0,"rows_kept":0,"cut":false,"hidden":false,"merged":[]}